[Event "FIDE World Cup O10-A 2024"]
[Site "Batumi"]
[Date "2024.06.28"]
[Round "6.7"]
[White "Ismailov, Omarbek"]
[Black "Kalinichenko, German Yu"]
[Result "1/2-1/2"]
[ECO "D93"]
[WhiteElo "1716"]
[BlackElo "1634"]
[Annotator "NA RC"]
[PlyCount "102"]
[EventDate "2024.06.23"]
[EventType "swiss"]
[EventCountry "GEO"]
[SourceTitle "playchess.com"]
[Source "ChessBase"]
[SourceQuality "1"]
[TimeControl "5400+30"]

1. d4 {[%emt 0:00:04]} Nf6 {[%emt 0:00:47]} 2. Bf4 {[%emt 0:00:10]} g6 {[%emt 0:00:23]} 3. e3 {[%emt 0:00:13]} Bg7 {[%emt 0:00:45]} 4. Nf3 {[%emt 0:00:33]} O-O {[%emt 0:00:58]} 5. c4 {[%emt 0:01:26]} c5 {[%emt 0:01:28]} 6. Nc3 {[%emt 0:00:50]} d5 {[%emt 0:00:13]} 7. Be2 {[%emt 0:00:20]} Nc6 {[%emt 1:29:26]} 8. O-O {[%emt 0:01:03]} Nh5 {[%emt 0:00:00]} 9. Bg3 {[%emt 0:02:13]} Nxg3 {[%emt 0:00:00]} 10. hxg3 {[%emt 0:05:24]} cxd4 {[%emt 0:00:00]} 11. exd4 {[%emt 0:00:13]} dxc4 {[%emt 0:00:00]} 12. d5 {[%emt 0:00:09]} Ne5 {[%emt 0:00:00]} 13. Nxe5 {[%emt 0:01:37]} Bxe5 {[%emt 0:00:00]} 14. Bxc4 {[%emt 0:00:06]} Bd7 {[%emt 0:00:00]} 15. Bb3 {[%emt 0:00:19]} Rc8 {[%emt 0:00:00]} 16. Rc1 {[%emt 0:00:58]} Qb6 {[%emt 0:00:00]} 17. Qf3 {[%emt 0:00:49]} Qf6 {[%emt 0:00:00]} 18. Qe2 {[%emt 0:05:44]} Rfe8 {[%emt 0:00:00]} 19. Ne4 {[%emt 0:03:27]} Qg7 {[%emt 0:00:00]} 20. Nc5 {[%emt 0:00:23]} Bxb2 {[%emt 0:00:00]} 21. Rc2 {[%emt 0:00:33]} Bf5 {[%emt 0:00:00]} 22. Rxb2 {[%emt 0:00:25]} Rxc5 {[%emt 0:00:00]} 23. Ba4 {[%emt 0:01:03]} Rb8 {[%emt 0:00:00]} 24. Qxe7 {[%emt 0:01:09]} Qxb2 {[%emt 0:00:00]} 25. Qxc5 {[%emt 0:00:09]} Qxa2 {[%emt 0:00:00]} 26. Qxa7 {[%emt 0:03:41]} Rd8 {[%emt 0:00:00]} 27. Qb6 {[%emt 0:01:01]} Rc8 {[%emt 0:00:00]} 28. Bb3 {[%emt 0:08:49]} Qe2 {[%emt 0:00:00]} 29. Qxb7 {[%emt 0:04:08]} Qd3 {[%emt 0:00:00]} 30. Rd1 {[%emt 0:01:37]} Qe4 {[%emt 0:00:00]} 31. Qb6 {[%emt 0:03:09]} Bg4 {[%emt 0:00:00]} 32. Rf1 {[%emt 0:05:31]} Qe2 {[%emt 0:00:00]} 33. Bd1 {[%emt 0:05:00]} Qc4 {[%emt 0:00:00]} 34. Bxg4 {[%emt 0:04:34]} Qxg4 {[%emt 0:00:00]} 35. Qb7 {[%emt 0:00:40]} Rd8 {[%emt 0:00:00]} 36. Qb3 {[%emt 0:04:40]} Kg7 {[%emt 0:00:00]} 37. Re1 {[%emt 0:00:34]} Qf5 {[%emt 0:00:00]} 38. Rd1 {[%emt 0:03:27]} Qe5 {[%emt 0:00:00]} 39. Qd3 {[%emt 0:03:32]} Rd6 {[%emt 0:00:00]} 40. f4 {[%emt 0:00:29]} Qb2 {[%emt 0:00:00]} 41. Rd2 {[%emt 0:02:14]} Qb4 {[%emt 0:00:00]} 42. Qe3 {[%emt 0:02:14]} Qb6 {[%emt 0:00:00]} 43. Kf2 {[%emt 0:01:13]} Kf6 {[%emt 0:00:00]} 44. g4 {[%emt 0:00:25]} Qxe3+ {[%emt 0:00:00]} 45. Kxe3 {[%emt 0:00:23]} Ra6 {[%emt 0:00:00]} 46. Ke4 {[%emt 0:01:14]} Ke7 {[%emt 0:00:00]} 47. g5 {[%emt 0:00:22]} Kd6 {[%emt 0:00:00]} 48. g4 {[%emt 0:00:38]} Ra1 {[%emt 0:00:00]} 49. Rh2 {[%emt 0:06:00]} Ra4+ {[%emt 0:00:00]} 50. Kf3 {[%emt 0:00:21]} Ra3+ {[%emt 0:00:00]} 51. Ke4 {[%emt 0:00:55]} Ra4+ {[%emt 0:00:00]} 1/2-1/2

[Event "FIDE World Cup O10-A 2024"]
[Site "Batumi"]
[Date "2024.06.28"]
[Round "6.8"]
[White "Hummatov, Safa"]
[Black "Macosay Lopez, Julio David"]
[Result "1-0"]
[ECO "C57"]
[WhiteElo "1693"]
[BlackElo "1607"]
[Annotator "NA RC"]
[PlyCount "87"]
[EventDate "2024.06.23"]
[EventType "swiss"]
[EventCountry "GEO"]
[SourceTitle "playchess.com"]
[Source "ChessBase"]
[SourceQuality "1"]
[TimeControl "5400+30"]

1. e4 {[%emt 0:00:04]} e5 {[%emt 0:00:06]} 2. Nf3 {[%emt 0:00:02]} Nc6 {[%emt 0:00:07]} 3. Bc4 {[%emt 0:00:04]} Nf6 {[%emt 0:00:09]} 4. Ng5 {[%emt 0:00:05]} d5 {[%emt 0:00:23]} 5. exd5 {[%emt 0:00:04]} b5 {[%emt 0:01:08]} 6. Bb3 {[%emt 0:01:22]} Nd4 {[%emt 0:00:40]} 7. O-O {[%emt 0:01:53]} Nxb3 {[%emt 0:01:50]} 8. axb3 {[%emt 0:00:14]} Nxd5 {[%emt 0:02:20]} 9. Qe2 {[%emt 0:06:05]} c6 {[%emt 0:09:20]} 10. Qxe5+ {[%emt 0:01:09]} Qe7 {[%emt 0:01:09]} 11. Qg3 {[%emt 0:04:40]} g6 {[%emt 0:03:05]} 12. c4 {[%emt 0:03:51]} Nc7 {[%emt 0:05:14]} 13. cxb5 {[%emt 0:04:44]} cxb5 {[%emt 0:00:43]} 14. Qc3 {[%emt 0:01:59]} Qxg5 {[%emt 0:07:38]} 15. Qxc7 {[%emt 0:00:59]} Qc5 {[%emt 0:00:50]} 16. Re1+ {[%emt 0:01:05]} Be6 {[%emt 0:00:14]} 17. Qb7 {[%emt 0:01:08]} Rc8 {[%emt 0:03:48]} 18. Rxa7 {[%emt 0:03:46]} Be7 {[%emt 0:02:41]} 19. d4 {[%emt 0:00:35]} Qd6 {[%emt 0:02:32]} 20. Bf4 {[%emt 0:00:19]} Qb4 {[%emt 0:00:55]} 21. Rxe6 {[%emt 0:01:07]} fxe6 {[%emt 0:00:16]} 22. Qxc8+ {[%emt 0:00:10]} Kf7 {[%emt 0:00:15]} 23. Qc3 {[%emt 0:00:11]} Qxc3 {[%emt 0:01:38]} 24. Nxc3 {[%emt 0:00:22]} b4 {[%emt 0:00:27]} 25. Bd6 {[%emt 0:00:25]} bxc3 {[%emt 0:00:13]} 26. Rxe7+ {[%emt 0:00:16]} Kf6 {[%emt 0:00:13]} 27. bxc3 {[%emt 0:00:22]} Ra8 {[%emt 0:00:17]} 28. g3 {[%emt 0:00:26]} Ra1+ {[%emt 0:00:07]} 29. Kg2 {[%emt 0:00:08]} h5 {[%emt 0:00:11]} 30. Rb7 {[%emt 0:00:12]} g5 {[%emt 0:00:34]} 31. Be5+ {[%emt 0:00:06]} Kg6 {[%emt 0:00:23]} 32. c4 {[%emt 0:00:18]} g4 {[%emt 0:00:10]} 33. Rg7+ {[%emt 0:00:34]} Kf5 {[%emt 0:00:12]} 34. Rf7+ {[%emt 0:00:04]} Ke4 {[%emt 0:00:43]} 35. Rf4+ {[%emt 0:00:05]} Kd3 {[%emt 0:00:13]} 36. d5 {[%emt 0:00:04]} exd5 {[%emt 0:00:28]} 37. Bxa1 {[%emt 0:00:06]} dxc4 {[%emt 0:00:09]} 38. bxc4 {[%emt 0:00:06]} h4 {[%emt 0:00:13]} 39. c5 {[%emt 0:00:04]} h3+ {[%emt 0:00:11]} 40. Kf1 {[%emt 0:00:06]} Kc2 {[%emt 0:00:09]} 41. c6 {[%emt 0:00:05]} Kb1 {[%emt 0:00:08]} 42. c7 {[%emt 0:00:10]} Kc2 {[%emt 0:00:05]} 43. c8=Q+ {[%emt 0:00:08]} Kb3 {[%emt 0:00:13]} 44. Qc4+ {[%emt 0:00:10]} 1-0

[Event "FIDE World Cup O10-A 2024"]
[Site "Batumi"]
[Date "2024.06.28"]
[Round "6.9"]
[White "Jakhaia, Andria"]
[Black "Kiladze, Giorgi"]
[Result "0-1"]
[ECO "B32"]
[WhiteElo "1652"]
[BlackElo "1552"]
[Annotator "NA RC"]
[PlyCount "74"]
[EventDate "2024.06.23"]
[EventType "swiss"]
[EventCountry "GEO"]
[SourceTitle "playchess.com"]
[Source "ChessBase"]
[SourceQuality "1"]
[TimeControl "5400+30"]

1. e4 {[%emt 0:00:21]} c5 {[%emt 0:00:07]} 2. Nf3 {[%emt 0:00:08]} Nc6 {[%emt 0:00:06]} 3. d4 {[%emt 0:00:08]} cxd4 {[%emt 0:00:04]} 4. Nxd4 {[%emt 0:00:13]} e5 {[%emt 0:00:06]} 5. Nb5 {[%emt 0:00:10]} a6 {[%emt 0:00:08]} 6. Nd6+ {[%emt 0:00:07]} Bxd6 {[%emt 0:00:06]} 7. Qxd6 {[%emt 0:00:11]} Qe7 {[%emt 0:00:05]} 8. Qd3 {[%emt 0:00:14]} Nf6 {[%emt 0:01:08]} 9. Nc3 {[%emt 0:00:10]} Nb4 {[%emt 0:04:39]} 10. Qd1 {[%emt 0:01:26]} d6 {[%emt 0:03:19]} 11. a3 {[%emt 0:11:20]} Nc6 {[%emt 0:00:31]} 12. Bg5 {[%emt 0:00:14]} Be6 {[%emt 0:00:13]} 13. Bd3 {[%emt 0:02:05]} h6 {[%emt 0:00:55]} 14. Bh4 {[%emt 0:02:01]} g5 {[%emt 0:00:33]} 15. Bg3 {[%emt 0:00:27]} h5 {[%emt 0:01:09]} 16. f3 {[%emt 0:03:33]} O-O-O {[%emt 0:04:20]} 17. Nd5 {[%emt 0:07:23]} Bxd5 {[%emt 0:10:04]} 18. exd5 {[%emt 0:00:14]} Nb8 {[%emt 0:00:26]} 19. Qd2 {[%emt 0:00:43]} Nbd7 {[%emt 0:11:19]} 20. Bf5 {[%emt 0:02:24]} Kb8 {[%emt 0:03:18]} 21. O-O-O {[%emt 0:01:49]} Rhg8 {[%emt 0:19:10]} 22. Rhe1 {[%emt 0:05:32]} Nb6 {[%emt 0:06:14]} 23. Qa5 {[%emt 0:08:35]} Qc7 {[%emt 0:03:16]} 24. Bf2 {[%emt 0:03:46]} Nfd7 {[%emt 0:03:46]} 25. Re3 {[%emt 0:24:23]} Qc5 {[%emt 0:21:10]} 26. Qe1 {[%emt 0:02:05]} Qc7 {[%emt 0:05:28]} 27. Rc3 {[%emt 0:03:26]} Nc5 {[%emt 0:00:21]} 28. b4 {[%emt 0:00:10]} Nba4 {[%emt 0:00:30]} 29. bxc5 {[%emt 0:00:42]} Nxc3 {[%emt 0:00:08]} 30. Qxc3 {[%emt 0:00:09]} f6 {[%emt 0:00:58]} 31. c6 {[%emt 0:03:59]} Ka8 {[%emt 0:00:52]} 32. Kd2 {[%emt 0:07:13]} bxc6 {[%emt 0:00:22]} 33. dxc6 {[%emt 0:01:47]} d5 {[%emt 0:00:43]} 34. Qc5 {[%emt 0:00:14]} Rd6 {[%emt 0:00:40]} 35. Bd7 {[%emt 0:00:46]} Rb8 {[%emt 0:00:36]} 36. a4 {[%emt 0:01:07]} d4 {[%emt 0:00:37]} 37. Kc1 {[%emt 0:00:58]} Rxd7 {[%emt 0:00:16]} 0-1

[Event "FIDE World Cup O10-A 2024"]
[Site "Batumi"]
[Date "2024.06.28"]
[Round "6.10"]
[White "Chkhartishvili, Lazare"]
[Black "Obado, Sean Adrich"]
[Result "0-1"]
[ECO "B40"]
[WhiteElo "1608"]
[BlackElo "1631"]
[Annotator "NA RC"]
[PlyCount "150"]
[EventDate "2024.06.23"]
[EventType "swiss"]
[EventCountry "GEO"]
[SourceTitle "playchess.com"]
[Source "ChessBase"]
[SourceQuality "1"]
[TimeControl "5400+30"]

1. e4 {[%emt 0:00:03]} c5 {[%emt 0:00:04]} 2. Nf3 {[%emt 0:00:03]} e6 {[%emt 0:00:03]} 3. d4 {[%emt 0:00:06]} cxd4 {[%emt 0:00:03]} 4. Nxd4 {[%emt 0:00:06]} Nf6 {[%emt 0:00:05]} 5. Bd3 {[%emt 0:00:06]} Bc5 {[%emt 0:00:35]} 6. Nb3 {[%emt 0:00:27]} Bb6 {[%emt 0:00:45]} 7. O-O {[%emt 0:00:20]} Nc6 {[%emt 1:32:25]} 8. Qe2 {[%emt 1:33:19]} d6 {[%emt 0:00:00]} 9. Be3 {[%emt 0:00:00]} Bxe3 {[%emt 0:00:00]} 10. Qxe3 {[%emt 0:00:00]} O-O {[%emt 0:00:00]} 11. Nc3 {[%emt 0:00:00]} e5 {[%emt 0:00:00]} 12. Be2 {[%emt 0:00:00]} Be6 {[%emt 0:00:00]} 13. Bf3 {[%emt 0:02:30]} Qe7 {[%emt 0:00:00]} 14. Rfd1 {[%emt 0:00:00]} Rac8 {[%emt 0:03:30]} 15. Rd2 {[%emt 0:00:00]} Rfd8 {[%emt 0:00:00]} 16. Rad1 {[%emt 0:00:00]} Bxb3 {[%emt 0:00:00]} 17. axb3 {[%emt 0:00:00]} Nd4 {[%emt 0:00:00]} 18. Qd3 {[%emt 0:00:00]} Nxf3+ {[%emt 0:00:00]} 19. Qxf3 {[%emt 0:03:00]} a6 {[%emt 0:00:00]} 20. Qe2 {[%emt 0:00:00]} Qc7 {[%emt 0:00:00]} 21. h3 {[%emt 0:00:00]} h6 {[%emt 0:00:00]} 22. Qd3 {[%emt 0:00:00]} Qa5 {[%emt 0:04:00]} 23. Qe2 {[%emt 0:00:00]} Qc7 {[%emt 0:00:00]} 24. Rc1 {[%emt 0:00:00]} Qc6 {[%emt 0:00:00]} 25. Nd5 {[%emt 0:00:00]} Nxd5 {[%emt 0:01:30]} 26. exd5 {[%emt 0:00:00]} Qb6 {[%emt 0:00:30]} 27. Qe3 {[%emt 0:00:00]} Qxe3 {[%emt 0:00:00]} 28. fxe3 {[%emt 0:00:00]} g6 {[%emt 0:00:00]} 29. c4 {[%emt 0:00:00]} b5 {[%emt 0:00:00]} 30. Rdc2 {[%emt 0:00:00]} Rc5 {[%emt 0:00:00]} 31. Ra1 {[%emt 0:00:00]} bxc4 {[%emt 0:01:07]} 32. bxc4 {[%emt 0:00:00]} a5 {[%emt 0:01:53]} 33. b3 {[%emt 0:00:00]} Rb8 {[%emt 0:00:00]} 34. Ra3 {[%emt 0:00:00]} Rb4 {[%emt 0:00:10]} 35. Kf2 {[%emt 0:00:00]} a4 {[%emt 0:00:38]} 36. Rxa4 {[%emt 0:00:00]} Rxb3 {[%emt 0:00:18]} 37. Ra6 {[%emt 0:00:00]} Rb4 {[%emt 0:00:16]} 38. Rxd6 {[%emt 0:00:00]} Rbxc4 {[%emt 0:00:12]} 39. Rxc4 {[%emt 0:00:00]} Rxc4 {[%emt 0:00:01]} 40. Rc6 {[%emt 0:00:00]} Rb4 {[%emt 0:00:26]} 41. Rc8+ {[%emt 0:00:00]} Kg7 {[%emt 0:00:15]} 42. d6 {[%emt 0:00:00]} Rb2+ {[%emt 0:00:07]} 43. Ke1 {[%emt 0:00:00]} Rb7 {[%emt 0:03:07]} 44. Rc7 {[%emt 0:00:00]} Rb8 {[%emt 0:00:00]} 45. Rd7 {[%emt 0:00:46]} Kf6 {[%emt 0:01:00]} 46. Ke2 {[%emt 0:00:06]} Rf8 {[%emt 0:00:00]} 47. Ra7 {[%emt 0:03:20]} Rd8 {[%emt 0:00:00]} 48. Ra6 {[%emt 0:00:58]} Ke6 {[%emt 0:00:06]} 49. d7+ {[%emt 0:00:05]} Kxd7 {[%emt 0:00:20]} 50. Kf3 {[%emt 0:00:08]} Ke7 {[%emt 0:00:24]} 51. Rb6 {[%emt 0:00:39]} Rd6 {[%emt 0:00:24]} 52. Rb7+ {[%emt 0:00:09]} Ke6 {[%emt 0:00:08]} 53. Rb8 {[%emt 0:00:13]} f5 {[%emt 0:01:53]} 54. Rh8 {[%emt 0:01:06]} e4+ {[%emt 0:00:11]} 55. Ke2 {[%emt 0:00:34]} h5 {[%emt 0:00:23]} 56. Rc8 {[%emt 0:00:38]} Kf6 {[%emt 0:00:35]} 57. h4 {[%emt 0:10:18]} Rb6 {[%emt 0:00:16]} 58. Kf2 {[%emt 0:00:00]} Rb2+ {[%emt 0:00:07]} 59. Kg3 {[%emt 0:00:00]} Re2 {[%emt 0:00:09]} 60. Rc3 {[%emt 0:00:00]} Ke5 {[%emt 0:00:38]} 61. Rc5+ {[%emt 0:00:00]} Kd6 {[%emt 0:00:20]} 62. Rc3 {[%emt 0:00:00]} Kd5 {[%emt 0:02:36]} 63. Kh3 {[%emt 0:00:00]} Rd2 {[%emt 0:00:00]} 64. Rc1 {[%emt 0:00:00]} Rd3 {[%emt 0:00:00]} 65. Re1 {[%emt 0:00:00]} f4 {[%emt 0:00:00]} 66. Kh2 {[%emt 0:00:00]} fxe3 {[%emt 0:00:00]} 67. Kg1 {[%emt 0:00:00]} Kd4 {[%emt 0:02:30]} 68. Kf1 {[%emt 0:00:00]} Rd2 {[%emt 0:00:00]} 69. Ra1 {[%emt 0:00:00]} Rc2 {[%emt 0:00:00]} 70. Ra8 {[%emt 0:00:00]} Rf2+ {[%emt 0:00:35]} 71. Kg1 {[%emt 0:00:00]} Rf5 {[%emt 0:00:32]} 72. Rd8+ {[%emt 0:00:00]} Rd5 {[%emt 0:00:15]} 73. Ra8 {[%emt 0:00:03]} Kd3 {[%emt 0:00:30]} 74. Kf1 {[%emt 0:00:06]} e2+ {[%emt 0:01:38]} 75. Kf2 {[%emt 0:00:36]} Rf5+ {[%emt 0:00:00]} 0-1

[Event "FIDE World Cup O10-A 2024"]
[Site "Batumi"]
[Date "2024.06.28"]
[Round "6.11"]
[White "Dien James"]
[Black "TURKI, YOUSEF HATTAN A"]
[Result "0-1"]
[ECO "C19"]
[WhiteElo "1419"]
[BlackElo "1401"]
[Annotator "NA RC"]
[PlyCount "94"]
[EventDate "2024.06.23"]
[EventType "swiss"]
[EventCountry "GEO"]
[SourceTitle "playchess.com"]
[Source "ChessBase"]
[SourceQuality "1"]
[TimeControl "5400+30"]

1. e4 {[%emt 0:00:03]} e6 {[%emt 0:00:01]} 2. d4 {[%emt 0:00:11]} d5 {[%emt 0:00:09]} 3. Nc3 {[%emt 0:00:21]} Bb4 {[%emt 0:00:15]} 4. e5 {[%emt 0:00:40]} c5 {[%emt 0:00:12]} 5. Nf3 {[%emt 0:00:20]} Nc6 {[%emt 0:01:36]} 6. a3 {[%emt 0:00:19]} Bxc3+ {[%emt 0:00:13]} 7. bxc3 {[%emt 0:00:11]} Nge7 {[%emt 0:00:26]} 8. Bd3 {[%emt 0:01:44]} c4 {[%emt 0:00:10]} 9. Be2 {[%emt 0:00:28]} Nf5 {[%emt 0:00:16]} 10. Bg5 {[%emt 0:01:28]} Qa5 {[%emt 0:00:18]} 11. Qd2 {[%emt 0:01:22]} h6 {[%emt 0:01:25]} 12. Be3 {[%emt 0:02:15]} Bd7 {[%emt 0:02:55]} 13. O-O {[%emt 0:01:23]} Nce7 {[%emt 0:01:24]} 14. h3 {[%emt 0:02:05]} Ba4 {[%emt 0:00:38]} 15. Rfc1 {[%emt 0:02:52]} b5 {[%emt 0:08:38]} 16. Nh2 {[%emt 0:07:05]} g5 {[%emt 0:00:42]} 17. Bg4 {[%emt 0:01:24]} O-O-O {[%emt 0:02:16]} 18. Bxf5 {[%emt 0:01:16]} Nxf5 {[%emt 0:00:05]} 19. Ng4 {[%emt 0:03:18]} h5 {[%emt 0:00:45]} 20. Nf6 {[%emt 0:01:16]} g4 {[%emt 0:00:41]} 21. hxg4 {[%emt 0:00:20]} hxg4 {[%emt 0:00:07]} 22. Nxg4 {[%emt 0:00:04]} Rdg8 {[%emt 0:00:29]} 23. Nf6 {[%emt 0:01:02]} Rg7 {[%emt 0:01:38]} 24. Bf4 {[%emt 0:02:24]} Nh4 {[%emt 0:00:42]} 25. Bg3 {[%emt 0:00:35]} Rg6 {[%emt 0:01:18]} 26. Bxh4 {[%emt 0:09:08]} Rxh4 {[%emt 0:00:10]} 27. g3 {[%emt 0:06:08]} Rh8 {[%emt 0:00:23]} 28. Kg2 {[%emt 0:02:32]} Rgh6 {[%emt 0:00:15]} 29. Ng4 {[%emt 0:00:40]} R6h7 {[%emt 0:01:41]} 30. f4 {[%emt 0:09:38]} Qd8 {[%emt 0:01:51]} 31. Qf2 {[%emt 0:02:27]} Qg8 {[%emt 0:01:03]} 32. Qf3 {[%emt 0:00:53]} Qg6 {[%emt 0:04:07]} 33. Ra2 {[%emt 0:05:01]} Qh5 {[%emt 0:03:58]} 34. Kf2 {[%emt 0:02:31]} Rg7 {[%emt 0:02:02]} 35. Nf6 {[%emt 0:01:34]} Qh3 {[%emt 0:02:25]} 36. Qg2 {[%emt 0:03:53]} Qh6 {[%emt 0:02:25]} 37. Raa1 {[%emt 0:01:47]} Qg6 {[%emt 0:01:02]} 38. Rab1 {[%emt 0:02:21]} a6 {[%emt 0:03:30]} 39. Rb2 {[%emt 0:01:07]} Rh6 {[%emt 0:04:34]} 40. Qf3 {[%emt 0:04:43]} Rh2+ {[%emt 0:01:01]} 41. Kg1 {[%emt 0:02:24]} Rh3 {[%emt 0:01:34]} 42. Kf2 {[%emt 0:20:17]} Rxg3 {[%emt 0:01:07]} 43. Qh1 {[%emt 0:00:00]} Rg2+ {[%emt 0:00:50]} 44. Qxg2 {[%emt 0:00:00]} Qxg2+ {[%emt 0:00:27]} 45. Ke1 {[%emt 0:00:00]} Qh1+ {[%emt 0:00:44]} 46. Kd2 {[%emt 0:00:00]} Rg2+ {[%emt 0:00:11]} 47. Ke3 {[%emt 0:00:00]} Qh3# {[%emt 0:00:14]} 0-1